[Event "Titled Tuesday Blitz May 10 Late 2022"]
[White "Jobava, Baadur"]
[Black "Bakalchuk, Johnatan"]
[WhiteFideId "13601520"]
[BlackFideId "2810301"]
[WhiteElo "2617"]
[BlackElo "2486"]
[Result "1-0"]
[Round "03"]
[TimeControl "180+1"]
[Date "2022.05.10"]
[WhiteClock "0:00:06"]
[BlackClock "0:00:02"]

1. b3 {[%clk 0:02:56]}  Nf6 {[%clk 0:02:59]} 2. Bb2 {[%clk 0:02:54]}  g6 {[%clk 0:03:00]} 3. c4 {[%clk 0:02:54]}  Bg7 {[%clk 0:02:59]} 4. g3 {[%clk 0:02:55]}  O-O {[%clk 0:02:59]} 5. Bg2 {[%clk 0:02:56]}  d6 {[%clk 0:03:00]} 6. d4 {[%clk 0:02:55]}  c5 {[%clk 0:02:57]} 7. Nf3 {[%clk 0:02:54]}  Qa5+ {[%clk 0:02:52]} 8. Qd2 {[%clk 0:02:50]}  Qxd2+ {[%clk 0:02:47]} 9. Nbxd2 {[%clk 0:02:51]}  Nc6 {[%clk 0:02:45]} 10. d5 {[%clk 0:02:49]}  Nb4 {[%clk 0:02:39]} 11. O-O {[%clk 0:02:46]}  b5 {[%clk 0:02:25]} 12. a3 {[%clk 0:02:36]}  Na6 {[%clk 0:02:25]} 13. e4 {[%clk 0:02:29]}  bxc4 {[%clk 0:02:22]} 14. bxc4 {[%clk 0:02:28]}  Rb8 {[%clk 0:02:10]} 15. Bc3 {[%clk 0:02:24]}  Nd7 {[%clk 0:01:49]} 16. Bxg7 {[%clk 0:02:24]}  Kxg7 {[%clk 0:01:50]} 17. Rfb1 {[%clk 0:02:25]}  Nb6 {[%clk 0:01:38]} 18. Ne1 {[%clk 0:02:24]}  Bd7 {[%clk 0:01:34]} 19. Nd3 {[%clk 0:02:23]}  Na4 {[%clk 0:01:31]} 20. e5 {[%clk 0:02:15]}  Bf5 {[%clk 0:01:29]} 21. Be4 {[%clk 0:02:02]}  Nc3 {[%clk 0:01:27]} 22. Rxb8 {[%clk 0:02:01]}  Rxb8 {[%clk 0:01:27]} 23. Bxf5 {[%clk 0:01:57]}  gxf5 {[%clk 0:01:27]} 24. exd6 {[%clk 0:01:56]}  exd6 {[%clk 0:01:28]} 25. Re1 {[%clk 0:01:54]}  Kf6 {[%clk 0:01:27]} 26. Kg2 {[%clk 0:01:54]}  Nc7 {[%clk 0:01:25]} 27. h4 {[%clk 0:01:51]}  Na8 {[%clk 0:01:02]} 28. Kf3 {[%clk 0:01:49]}  Nb6 {[%clk 0:01:01]} 29. Nf4 {[%clk 0:01:28]}  Nd7 {[%clk 0:00:56]} 30. Nh5+ {[%clk 0:01:22]}  Kg6 {[%clk 0:00:56]} 31. Nf4+ {[%clk 0:01:22]}  Kf6 {[%clk 0:00:57]} 32. Nd3 {[%clk 0:00:40]}  Ne5+ {[%clk 0:00:56]} 33. Nxe5 {[%clk 0:00:40]}  dxe5 {[%clk 0:00:57]} 34. Ke3 {[%clk 0:00:38]}  Rb2 {[%clk 0:00:37]} 35. Kd3 {[%clk 0:00:38]}  Na4 {[%clk 0:00:35]} 36. Rb1 {[%clk 0:00:35]}  e4+ {[%clk 0:00:33]} 37. Ke3 {[%clk 0:00:35]}  Ra2 {[%clk 0:00:27]} 38. Rb3 {[%clk 0:00:35]}  Nb2 {[%clk 0:00:18]} 39. f3 {[%clk 0:00:15]}  Nd1+ {[%clk 0:00:17]} 40. Ke2 {[%clk 0:00:15]}  e3 {[%clk 0:00:18]} 41. Kxd1 {[%clk 0:00:15]}  Rxd2+ {[%clk 0:00:18]} 42. Ke1 {[%clk 0:00:15]}  Rc2 {[%clk 0:00:13]} 43. Rxe3 {[%clk 0:00:14]}  Rxc4 {[%clk 0:00:13]} 44. d6 {[%clk 0:00:05]}  Rd4 {[%clk 0:00:12]} 45. Re7 {[%clk 0:00:05]}  Rxd6 {[%clk 0:00:11]} 46. Rxa7 {[%clk 0:00:05]}  Rd3 {[%clk 0:00:11]} 47. Ke2 {[%clk 0:00:05]}  Rb3 {[%clk 0:00:09]} 48. a4 {[%clk 0:00:04]}  Ra3 {[%clk 0:00:06]} 49. g4 {[%clk 0:00:04]}  c4 {[%clk 0:00:06]} 50. Ra6+ {[%clk 0:00:04]}  Ke5 {[%clk 0:00:04]} 51. Ra5+ {[%clk 0:00:03]}  Kd4 {[%clk 0:00:05]} 52. Rxf5 {[%clk 0:00:04]}  Ra2+ {[%clk 0:00:04]} 53. Kd1 {[%clk 0:00:04]}  c3 {[%clk 0:00:05]} 54. Rxf7 {[%clk 0:00:04]}  Ra1+ {[%clk 0:00:02]} 55. Kc2 {[%clk 0:00:04]}  Ra2+ {[%clk 0:00:03]} 56. Kc1 {[%clk 0:00:05]}  Ra1+ {[%clk 0:00:03]} 57. Kc2 {[%clk 0:00:05]}  Ra2+ {[%clk 0:00:04]} 58. Kb1 {[%clk 0:00:06]}  Rb2+ {[%clk 0:00:02]} 59. Kc1 {[%clk 0:00:06]}  Ra2 {[%clk 0:00:02]} 60. Rxh7 {[%clk 0:00:06]}  Ke3 {[%clk 0:00:01]} 61. Re7+ {[%clk 0:00:05]}  Kxf3 {[%clk 0:00:01]} 62. g5 {[%clk 0:00:06]}  Rxa4 {[%clk 0:00:01]} 63. h5 {[%clk 0:00:06]}  Rg4 {[%clk 0:00:02]} 64. g6 {[%clk 0:00:06]}  Kg3 {[%clk 0:00:02]} 65. g7 {[%clk 0:00:06]}  Kh4 {[%clk 0:00:02]} 66. h6 {[%clk 0:00:06]}  Kg3 {[%clk 0:00:02]} 67. h7 {[%clk 0:00:06]} 1-0


[Site "https://www.chess.com"]

[Event "Titled Tuesday Blitz May 10 Late 2022"]
[White "Kanyamarala, Tarun"]
[Black "Babazada, Khazar"]
[WhiteFideId "45004714"]
[BlackFideId "13413554"]
[WhiteElo "2540"]
[BlackElo "2857"]
[Result "0-1"]
[Round "03"]
[TimeControl "180+1"]
[Date "2022.05.11"]
[WhiteClock "0:00:20"]
[BlackClock "0:00:26"]

1. d4 {[%clk 0:03:00]}  Nf6 {[%clk 0:03:00]} 2. Nf3 {[%clk 0:03:00]}  e6 {[%clk 0:03:00]} 3. Bf4 {[%clk 0:03:00]}  b6 {[%clk 0:02:59]} 4. e3 {[%clk 0:02:59]}  Bb7 {[%clk 0:03:00]} 5. Bd3 {[%clk 0:02:59]}  Be7 {[%clk 0:03:00]} 6. h3 {[%clk 0:02:58]}  O-O {[%clk 0:03:01]} 7. O-O {[%clk 0:02:58]}  c5 {[%clk 0:02:59]} 8. Nbd2 {[%clk 0:02:56]}  d5 {[%clk 0:02:59]} 9. c3 {[%clk 0:02:54]}  Nbd7 {[%clk 0:02:59]} 10. Qe2 {[%clk 0:02:49]}  Ne4 {[%clk 0:02:59]} 11. Ne5 {[%clk 0:02:44]}  Nxe5 {[%clk 0:02:59]} 12. Bxe5 {[%clk 0:02:44]}  Bd6 {[%clk 0:02:56]} 13. Bxd6 {[%clk 0:02:34]}  Nxd6 {[%clk 0:02:56]} 14. dxc5 {[%clk 0:02:32]}  bxc5 {[%clk 0:02:57]} 15. e4 {[%clk 0:02:33]}  Qg5 {[%clk 0:02:16]} 16. f4 {[%clk 0:02:23]}  Qh4 {[%clk 0:02:07]} 17. e5 {[%clk 0:02:17]}  Nc8 {[%clk 0:02:02]} 18. Nf3 {[%clk 0:02:11]}  Qxf4 {[%clk 0:01:49]} 19. h4 {[%clk 0:01:53]}  Qh6 {[%clk 0:01:35]} 20. Ng5 {[%clk 0:01:49]}  g6 {[%clk 0:01:36]} 21. Qg4 {[%clk 0:01:01]}  Ne7 {[%clk 0:01:23]} 22. Rf6 {[%clk 0:00:53]}  Nf5 {[%clk 0:01:22]} 23. Bxf5 {[%clk 0:00:51]}  exf5 {[%clk 0:01:20]} 24. Qf4 {[%clk 0:00:44]}  Qg7 {[%clk 0:01:14]} 25. h5 {[%clk 0:00:37]}  Rad8 {[%clk 0:01:08]} 26. Kf2 {[%clk 0:00:28]}  d4 {[%clk 0:01:05]} 27. Rh1 {[%clk 0:00:27]}  dxc3 {[%clk 0:00:55]} 28. bxc3 {[%clk 0:00:28]}  Bd5 {[%clk 0:00:30]} 29. hxg6 {[%clk 0:00:25]}  h6 {[%clk 0:00:31]} 30. Nxf7 {[%clk 0:00:22]}  Bxf7 {[%clk 0:00:29]} 31. gxf7+ {[%clk 0:00:20]}  Rxf7 {[%clk 0:00:30]} 32. Rfxh6 {[%clk 0:00:20]}  Rfd7 {[%clk 0:00:26]} 33. Rh8+ {[%clk 0:00:20]}  Qxh8 {[%clk 0:00:26]} 34. Rxh8+ {[%clk 0:00:20]}  Kxh8 {[%clk 0:00:27]} 35. Qh4+ {[%clk 0:00:20]}  Kg7 {[%clk 0:00:25]} 36. Qg5+ {[%clk 0:00:20]}  Kf8 {[%clk 0:00:26]} 37. Qxf5+ {[%clk 0:00:21]}  Rf7 {[%clk 0:00:25]} 38. g4 {[%clk 0:00:20]}  Rxf5+ {[%clk 0:00:25]} 39. gxf5 {[%clk 0:00:20]}  Rd5 {[%clk 0:00:26]} 0-1


[Site "https://www.chess.com"]

[Event "Titled Tuesday Blitz May 10 Late 2022"]
[White "Kim, Sergey"]
[Black "Leitao, Rafael"]
[WhiteFideId "13700570"]
[BlackFideId "2101246"]
[WhiteElo "2474"]
[BlackElo "2609"]
[Result "1/2-1/2"]
[Round "03"]
[TimeControl "180+1"]
[Date "2022.05.11"]
[WhiteClock "0:00:08"]
[BlackClock "0:00:03"]

1. d4 {[%clk 0:03:00]}  Nf6 {[%clk 0:02:58]} 2. c4 {[%clk 0:03:00]}  e6 {[%clk 0:02:57]} 3. Nc3 {[%clk 0:03:01]}  Bb4 {[%clk 0:02:57]} 4. Qc2 {[%clk 0:03:01]}  O-O {[%clk 0:02:55]} 5. a3 {[%clk 0:03:01]}  Bxc3+ {[%clk 0:02:55]} 6. Qxc3 {[%clk 0:03:02]}  d5 {[%clk 0:02:55]} 7. Nf3 {[%clk 0:03:02]}  dxc4 {[%clk 0:02:53]} 8. Qxc4 {[%clk 0:03:02]}  b6 {[%clk 0:02:53]} 9. g3 {[%clk 0:03:03]}  Ba6 {[%clk 0:02:45]} 10. Qc2 {[%clk 0:03:03]}  Nbd7 {[%clk 0:02:44]} 11. Qc6 {[%clk 0:03:02]}  Qc8 {[%clk 0:02:36]} 12. Bg2 {[%clk 0:03:02]}  Bb7 {[%clk 0:02:34]} 13. Qa4 {[%clk 0:03:01]}  c5 {[%clk 0:02:34]} 14. O-O {[%clk 0:02:56]}  Bc6 {[%clk 0:02:25]} 15. Qc2 {[%clk 0:02:25]}  Qb7 {[%clk 0:01:54]} 16. dxc5 {[%clk 0:02:16]}  Nxc5 {[%clk 0:01:53]} 17. Bg5 {[%clk 0:02:14]}  Nfe4 {[%clk 0:01:50]} 18. Be3 {[%clk 0:02:11]}  Rac8 {[%clk 0:01:34]} 19. b4 {[%clk 0:02:02]}  Na4 {[%clk 0:01:29]} 20. Rac1 {[%clk 0:01:56]}  Nac3 {[%clk 0:01:24]} 21. Nd4 {[%clk 0:01:52]}  Bd5 {[%clk 0:01:21]} 22. Qb2 {[%clk 0:01:42]}  Nd6 {[%clk 0:01:12]} 23. f3 {[%clk 0:01:31]}  Na4 {[%clk 0:01:12]} 24. Qd2 {[%clk 0:01:24]}  Nc4 {[%clk 0:01:11]} 25. Qd3 {[%clk 0:01:17]}  Rfd8 {[%clk 0:01:04]} 26. Bf2 {[%clk 0:01:10]}  e5 {[%clk 0:01:00]} 27. Nf5 {[%clk 0:01:08]}  Be6 {[%clk 0:00:57]} 28. Qb1 {[%clk 0:01:05]}  Nxa3 {[%clk 0:00:54]} 29. Rxc8 {[%clk 0:01:04]}  Rxc8 {[%clk 0:00:51]} 30. Qa1 {[%clk 0:00:44]}  Nc4 {[%clk 0:00:45]} 31. e4 {[%clk 0:00:40]}  b5 {[%clk 0:00:39]} 32. Qc1 {[%clk 0:00:34]}  f6 {[%clk 0:00:33]} 33. Rd1 {[%clk 0:00:27]}  Qc7 {[%clk 0:00:30]} 34. Ne3 {[%clk 0:00:24]}  Rd8 {[%clk 0:00:28]} 35. Nd5 {[%clk 0:00:23]}  Bxd5 {[%clk 0:00:28]} 36. exd5 {[%clk 0:00:24]}  Rc8 {[%clk 0:00:25]} 37. f4 {[%clk 0:00:23]}  exf4 {[%clk 0:00:24]} 38. Qxf4 {[%clk 0:00:23]}  Qxf4 {[%clk 0:00:23]} 39. gxf4 {[%clk 0:00:24]}  Nab2 {[%clk 0:00:18]} 40. Ra1 {[%clk 0:00:21]}  Na4 {[%clk 0:00:18]} 41. Rd1 {[%clk 0:00:20]}  Nab2 {[%clk 0:00:17]} 42. Ra1 {[%clk 0:00:20]}  Nd3 {[%clk 0:00:17]} 43. Bxa7 {[%clk 0:00:18]}  Nxf4 {[%clk 0:00:16]} 44. d6 {[%clk 0:00:18]}  Nxd6 {[%clk 0:00:16]} 45. Bf3 {[%clk 0:00:13]}  Nc4 {[%clk 0:00:16]} 46. Bc5 {[%clk 0:00:11]}  g5 {[%clk 0:00:14]} 47. Ra7 {[%clk 0:00:10]}  Rd8 {[%clk 0:00:15]} 48. Bc6 {[%clk 0:00:09]}  Rd1+ {[%clk 0:00:12]} 49. Kf2 {[%clk 0:00:09]}  Rd2+ {[%clk 0:00:12]} 50. Ke1 {[%clk 0:00:09]}  Ne5 {[%clk 0:00:11]} 51. Bxb5 {[%clk 0:00:08]}  Nf3+ {[%clk 0:00:11]} 52. Kf1 {[%clk 0:00:08]}  Nxh2+ {[%clk 0:00:09]} 53. Ke1 {[%clk 0:00:08]}  Nf3+ {[%clk 0:00:09]} 54. Kf1 {[%clk 0:00:08]}  Nh2+ {[%clk 0:00:07]} 55. Ke1 {[%clk 0:00:08]}  Nf3+ {[%clk 0:00:05]} 56. Kf1 {[%clk 0:00:08]}  Nh2+ {[%clk 0:00:03]} 1/2-1/2


[Site "https://www.chess.com"]

[Event "Titled Tuesday Blitz May 10 Late 2022"]
[White "Koridze, Lile"]
[Black "Ibarra Jerez, Jose Carlos"]
[WhiteFideId "13612514"]
[BlackFideId "2226332"]
[WhiteElo "2050"]
[BlackElo "2626"]
[Result "0-1"]
[Round "03"]
[TimeControl "180+1"]
[Date "2022.05.10"]
[WhiteClock "0:02:07"]
[BlackClock "0:00:29"]

1. d4 {[%clk 0:03:00]}  Nf6 {[%clk 0:02:58]} 2. c4 {[%clk 0:03:00]}  d6 {[%clk 0:02:58]} 3. Nc3 {[%clk 0:03:00]}  e5 {[%clk 0:02:58]} 4. dxe5 {[%clk 0:03:00]}  dxe5 {[%clk 0:02:55]} 5. Qc2 {[%clk 0:03:00]}  Nc6 {[%clk 0:02:46]} 6. e3 {[%clk 0:03:00]}  Nb4 {[%clk 0:02:41]} 7. Qb3 {[%clk 0:02:59]}  Bf5 {[%clk 0:02:35]} 8. e4 {[%clk 0:02:47]}  Nxe4 {[%clk 0:02:33]} 9. a3 {[%clk 0:02:47]}  Nc5 {[%clk 0:01:32]} 10. Qxb4 {[%clk 0:02:38]}  a5 {[%clk 0:01:25]} 11. Bg5 {[%clk 0:02:27]}  f6 {[%clk 0:01:10]} 12. Rd1 {[%clk 0:02:23]}  Qxd1+ {[%clk 0:00:56]} 13. Nxd1 {[%clk 0:02:22]}  axb4 {[%clk 0:00:57]} 14. axb4 {[%clk 0:02:22]}  Nd3+ {[%clk 0:00:55]} 15. Bxd3 {[%clk 0:02:22]}  Bxd3 {[%clk 0:00:55]} 16. Bd2 {[%clk 0:02:22]}  Bxc4 {[%clk 0:00:54]} 17. Nf3 {[%clk 0:02:23]}  Ra1 {[%clk 0:00:51]} 18. Bc3 {[%clk 0:02:21]}  Bb3 {[%clk 0:00:46]} 19. Ke2 {[%clk 0:02:18]}  Bd6 {[%clk 0:00:40]} 20. Nd2 {[%clk 0:02:18]}  Bxd1+ {[%clk 0:00:40]} 21. Rxd1 {[%clk 0:02:18]}  Rxd1 {[%clk 0:00:41]} 22. Kxd1 {[%clk 0:02:19]}  Kd7 {[%clk 0:00:41]} 23. Nc4 {[%clk 0:02:19]}  Ra8 {[%clk 0:00:40]} 24. Ke2 {[%clk 0:02:18]}  b5 {[%clk 0:00:40]} 25. Ne3 {[%clk 0:02:18]}  c6 {[%clk 0:00:40]} 26. Nf5 {[%clk 0:02:17]}  g6 {[%clk 0:00:40]} 27. Ne3 {[%clk 0:02:17]}  Ke6 {[%clk 0:00:39]} 28. f3 {[%clk 0:02:16]}  f5 {[%clk 0:00:37]} 29. Nc2 {[%clk 0:02:16]}  e4 {[%clk 0:00:31]} 30. fxe4 {[%clk 0:02:14]}  fxe4 {[%clk 0:00:32]} 31. Ke3 {[%clk 0:02:14]}  Kd5 {[%clk 0:00:32]} 32. g3 {[%clk 0:02:14]}  Be5 {[%clk 0:00:29]} 33. Ke2 {[%clk 0:02:09]}  Bxc3 {[%clk 0:00:28]} 34. bxc3 {[%clk 0:02:09]}  Kc4 {[%clk 0:00:29]} 35. Kd2 {[%clk 0:02:07]}  Ra2 {[%clk 0:00:29]} 36. Kc1 {[%clk 0:02:07]}  Kxc3 {[%clk 0:00:29]} 0-1


[Site "https://www.chess.com"]

[Event "Titled Tuesday Blitz May 10 Late 2022"]
[White "Ladan, Nicholas"]
[Black "Roberson, Peter T"]
[WhiteFideId "30918855"]
[BlackFideId "412384"]
[WhiteElo "2167"]
[BlackElo "2346"]
[Result "0-1"]
[Round "03"]
[TimeControl "180+1"]
[Date "2022.05.11"]
[WhiteClock "0:00:03"]
[BlackClock "0:00:17"]

1. d4 {[%clk 0:03:00]}  e6 {[%clk 0:02:57]} 2. Nf3 {[%clk 0:03:00]}  b6 {[%clk 0:02:56]} 3. g3 {[%clk 0:02:55]}  Bb7 {[%clk 0:02:57]} 4. Bg2 {[%clk 0:02:56]}  Nf6 {[%clk 0:02:55]} 5. c4 {[%clk 0:02:56]}  c5 {[%clk 0:02:54]} 6. d5 {[%clk 0:02:51]}  exd5 {[%clk 0:02:55]} 7. Nh4 {[%clk 0:02:51]}  g6 {[%clk 0:02:53]} 8. O-O {[%clk 0:02:50]}  Bg7 {[%clk 0:02:53]} 9. Nc3 {[%clk 0:02:50]}  O-O {[%clk 0:02:53]} 10. cxd5 {[%clk 0:02:50]}  d6 {[%clk 0:02:53]} 11. e4 {[%clk 0:02:48]}  Nbd7 {[%clk 0:02:52]} 12. f4 {[%clk 0:02:43]}  Re8 {[%clk 0:02:50]} 13. Qd3 {[%clk 0:02:39]}  a6 {[%clk 0:02:45]} 14. a4 {[%clk 0:02:38]}  b5 {[%clk 0:02:29]} 15. axb5 {[%clk 0:02:04]}  axb5 {[%clk 0:02:30]} 16. Rxa8 {[%clk 0:02:04]}  Qxa8 {[%clk 0:02:30]} 17. Qxb5 {[%clk 0:02:02]}  Ba6 {[%clk 0:02:28]} 18. Qa4 {[%clk 0:02:01]}  Bxf1 {[%clk 0:02:27]} 19. Qxa8 {[%clk 0:02:01]}  Rxa8 {[%clk 0:02:28]} 20. Bxf1 {[%clk 0:02:01]}  Ra1 {[%clk 0:02:17]} 21. Bd2 {[%clk 0:01:49]}  Ng4 {[%clk 0:02:03]} 22. Nf3 {[%clk 0:01:44]}  c4 {[%clk 0:01:48]} 23. h3 {[%clk 0:01:43]}  Ngf6 {[%clk 0:01:48]} 24. Be3 {[%clk 0:01:29]}  Nh5 {[%clk 0:01:43]} 25. Bf2 {[%clk 0:01:18]}  Kf8 {[%clk 0:01:42]} 26. Kg2 {[%clk 0:01:18]}  Bxc3 {[%clk 0:01:36]} 27. bxc3 {[%clk 0:01:17]}  Nhf6 {[%clk 0:01:35]} 28. Bxc4 {[%clk 0:00:44]}  Nxe4 {[%clk 0:01:34]} 29. Bd4 {[%clk 0:00:44]}  Rc1 {[%clk 0:01:31]} 30. Bb5 {[%clk 0:00:38]}  Ndc5 {[%clk 0:01:28]} 31. c4 {[%clk 0:00:37]}  Rc2+ {[%clk 0:01:27]} 32. Kf1 {[%clk 0:00:34]}  Nxg3+ {[%clk 0:01:27]} 33. Ke1 {[%clk 0:00:35]}  Nd3+ {[%clk 0:01:10]} 34. Kd1 {[%clk 0:00:32]}  Ra2 {[%clk 0:01:07]} 35. Ne1 {[%clk 0:00:18]}  Nxf4 {[%clk 0:00:42]} 36. Nc2 {[%clk 0:00:17]}  Nf5 {[%clk 0:00:39]} 37. Bf6 {[%clk 0:00:13]}  Nxh3 {[%clk 0:00:26]} 38. Nb4 {[%clk 0:00:11]}  Rg2 {[%clk 0:00:15]} 39. Nc6 {[%clk 0:00:06]}  Nf2+ {[%clk 0:00:16]} 40. Kc1 {[%clk 0:00:05]}  Ne4 {[%clk 0:00:16]} 41. Bd4 {[%clk 0:00:02]}  Nxd4 {[%clk 0:00:17]} 42. Nxd4 {[%clk 0:00:03]}  h5 {[%clk 0:00:16]} 43. Bc6 {[%clk 0:00:03]}  h4 {[%clk 0:00:17]} 44. c5 {[%clk 0:00:03]}  Nxc5 {[%clk 0:00:16]} 45. Nf3 {[%clk 0:00:03]}  h3 {[%clk 0:00:17]} 0-1


[Site "https://www.chess.com"]

[Event "Titled Tuesday Blitz May 10 Late 2022"]
[White "Maghsoodloo, Parham"]
[Black "Janaszak, Dawid"]
[WhiteFideId "12539929"]
[BlackFideId "1119206"]
[WhiteElo "2630"]
[BlackElo "2199"]
[Result "1-0"]
[Round "03"]
[TimeControl "180+1"]
[Date "2022.05.10"]
[WhiteClock "0:02:12"]
[BlackClock "0:00:14"]

1. d4 {[%clk 0:03:00]}  Nf6 {[%clk 0:02:59]} 2. c4 {[%clk 0:02:55]}  g6 {[%clk 0:02:59]} 3. Nc3 {[%clk 0:02:55]}  Bg7 {[%clk 0:03:00]} 4. e4 {[%clk 0:02:55]}  d6 {[%clk 0:03:00]} 5. Be2 {[%clk 0:02:55]}  O-O {[%clk 0:02:59]} 6. Bg5 {[%clk 0:02:56]}  c5 {[%clk 0:02:56]} 7. d5 {[%clk 0:02:54]}  h6 {[%clk 0:02:53]} 8. Bh4 {[%clk 0:02:54]}  e6 {[%clk 0:02:46]} 9. Nf3 {[%clk 0:02:50]}  e5 {[%clk 0:02:39]} 10. Nd2 {[%clk 0:02:47]}  Nbd7 {[%clk 0:02:22]} 11. a3 {[%clk 0:02:41]}  a6 {[%clk 0:02:17]} 12. b4 {[%clk 0:02:39]}  b6 {[%clk 0:02:15]} 13. Nf1 {[%clk 0:02:37]}  Qe8 {[%clk 0:02:11]} 14. Ne3 {[%clk 0:02:37]}  Nh7 {[%clk 0:02:09]} 15. g4 {[%clk 0:02:36]}  Bf6 {[%clk 0:02:06]} 16. Bg3 {[%clk 0:02:36]}  Bg5 {[%clk 0:02:05]} 17. Ng2 {[%clk 0:02:27]}  Kg7 {[%clk 0:01:44]} 18. h4 {[%clk 0:02:27]}  Bd8 {[%clk 0:01:43]} 19. Ne3 {[%clk 0:02:27]}  b5 {[%clk 0:01:30]} 20. cxb5 {[%clk 0:02:24]}  axb5 {[%clk 0:01:20]} 21. Nxb5 {[%clk 0:02:23]}  Qe7 {[%clk 0:01:17]} 22. Nc4 {[%clk 0:02:22]}  cxb4 {[%clk 0:01:07]} 23. axb4 {[%clk 0:02:21]}  Rxa1 {[%clk 0:01:08]} 24. Qxa1 {[%clk 0:02:22]}  Ndf6 {[%clk 0:01:05]} 25. Nbxd6 {[%clk 0:02:20]}  Bxg4 {[%clk 0:01:03]} 26. f3 {[%clk 0:02:19]}  Bh5 {[%clk 0:00:53]} 27. Bxe5 {[%clk 0:02:17]}  Kg8 {[%clk 0:00:43]} 28. Rg1 {[%clk 0:02:14]}  Nd7 {[%clk 0:00:30]} 29. Nf5 {[%clk 0:02:14]}  Qxb4+ {[%clk 0:00:15]} 30. Bc3 {[%clk 0:02:12]}  Bxh4+ {[%clk 0:00:14]} 31. Kf1 {[%clk 0:02:12]} 1-0


[Site "https://www.chess.com"]

[Event "Titled Tuesday Blitz May 10 Late 2022"]
[White "Marin Masis, Jose Esteban"]
[Black "Hardaway, Brewington"]
[WhiteFideId "6508146"]
[BlackFideId "30941849"]
[WhiteElo "1710"]
[BlackElo "1768"]
[Result "0-1"]
[Round "03"]
[TimeControl "180+1"]
[Date "2022.05.11"]
[WhiteClock "0:00:03"]
[BlackClock "0:01:00"]

1. e4 {[%clk 0:03:00]}  e6 {[%clk 0:02:50]} 2. d4 {[%clk 0:02:47]}  d5 {[%clk 0:02:43]} 3. Nc3 {[%clk 0:02:44]}  Nf6 {[%clk 0:02:36]} 4. e5 {[%clk 0:02:40]}  Nfd7 {[%clk 0:02:34]} 5. f4 {[%clk 0:02:38]}  c5 {[%clk 0:02:34]} 6. Nf3 {[%clk 0:02:36]}  Nc6 {[%clk 0:02:34]} 7. Be3 {[%clk 0:02:33]}  cxd4 {[%clk 0:02:33]} 8. Nxd4 {[%clk 0:02:32]}  Bb4 {[%clk 0:02:26]} 9. a3 {[%clk 0:02:07]}  Bc5 {[%clk 0:02:19]} 10. Qd2 {[%clk 0:02:03]}  Qe7 {[%clk 0:02:06]} 11. O-O-O {[%clk 0:01:36]}  f6 {[%clk 0:01:49]} 12. Nf5 {[%clk 0:01:01]}  Bxe3 {[%clk 0:01:40]} 13. Nxe3 {[%clk 0:00:55]}  d4 {[%clk 0:01:25]} 14. Nb5 {[%clk 0:00:10]}  dxe3 {[%clk 0:01:23]} 15. Nd6+ {[%clk 0:00:10]}  Kf8 {[%clk 0:01:22]} 16. Qxe3 {[%clk 0:00:10]}  Nb6 {[%clk 0:01:18]} 17. Bb5 {[%clk 0:00:09]}  Nd5 {[%clk 0:01:16]} 18. Qf2 {[%clk 0:00:09]}  Bd7 {[%clk 0:01:14]} 19. Bc4 {[%clk 0:00:09]}  Kg8 {[%clk 0:01:09]} 20. Rxd5 {[%clk 0:00:08]}  exd5 {[%clk 0:01:07]} 21. Bxd5+ {[%clk 0:00:09]}  Be6 {[%clk 0:01:07]} 22. Nf5 {[%clk 0:00:05]}  Qd7 {[%clk 0:01:04]} 23. Bxe6+ {[%clk 0:00:03]}  Qxe6 {[%clk 0:01:05]} 24. Nd4 {[%clk 0:00:03]}  Nxd4 {[%clk 0:01:05]} 25. Qxd4 {[%clk 0:00:04]}  fxe5 {[%clk 0:01:06]} 26. fxe5 {[%clk 0:00:05]}  Re8 {[%clk 0:01:06]} 27. Re1 {[%clk 0:00:04]}  h6 {[%clk 0:01:06]} 28. Qxa7 {[%clk 0:00:05]}  Kh7 {[%clk 0:01:05]} 29. Qxb7 {[%clk 0:00:05]}  Rhf8 {[%clk 0:01:05]} 30. Qe4+ {[%clk 0:00:05]}  Kg8 {[%clk 0:01:05]} 31. c4 {[%clk 0:00:06]}  Rc8 {[%clk 0:01:05]} 32. b3 {[%clk 0:00:06]}  Rf2 {[%clk 0:01:01]} 33. Kb1 {[%clk 0:00:05]}  Rd8 {[%clk 0:01:01]} 34. Rc1 {[%clk 0:00:02]}  Rdd2 {[%clk 0:00:59]} 35. Rc2 {[%clk 0:00:01]}  Rxc2 {[%clk 0:00:59]} 36. Qxc2 {[%clk 0:00:02]}  Rxc2 {[%clk 0:01:00]} 37. Kxc2 {[%clk 0:00:03]}  Qxe5 {[%clk 0:01:00]} 0-1


[Site "https://www.chess.com"]